bitfinex/quotes_SOLUSD_20251208
["timestamp","ask_amount","ask_price","bid_price","bid_amount"]
[1765207494188,24.70594183,136.13,136.05,8.73]
[1765207494189,7.8298883,136.11,136.05,16.5598883]
[1765207495192,15.17710027,136.11,136.06,8.03969866]
[1765207495589,8.06700881,136.11,136.06,26.41394531]
[1765207496312,0.72,136.11,136.06,26.41394531]
[1765207496517,23.21656541,136.12,136.07,8.5198883]
[1765207496518,8.04,136.12,136.07,8.5198883]
[1765207497015,16.10647343,136.12,136.07,0.69]
[1765207497309,0.72,136.11,136.07,7.34905336]
[1765207498016,8.0658994,136.14,136.08,0.69]
[1765207498196,7.8298883,136.13,136.08,0.69]
[1765207498523,15.8698883,136.12,136.06,15.86937449]
[1765207498688,16.5898883,136.12,136.07,7.34906494]
[1765207499220,23.21667856,136.12,136.07,8.02906494]
[1765207499515,0.68,136.11,136.07,8.02906494]
[1765207499723,16.06679026,136.12,136.08,0.68]
[1765207500313,23.89667856,136.12,136.07,7.34906494]
[1765207500520,7.8298883,136.09,136.03,19.05756105]
[1765207500690,7.8298883,136.08,136.05,7.35004244]
[1765207500890,8.5098883,136.08,136.05,7.35004244]
[1765207501103,8.5098883,136.07,136.01,34.25014545]
[1765207501297,8.02943855,136.07,136.02,7.35186002]
[1765207501620,15.85932685,136.07,136.02,7.35186002]
[1765207501825,7.8298883,136.05,135.99,19.0630255]
[1765207501999,16.5498883,136.06,136.01,7.35230783]
[1765207502326,8.72,136.06,136.01,33.56319752]
[1765207502524,15.8698883,136.06,136.01,8.03230783]
[1765207502828,0.68,136.05,136.01,0.68]
[1765207503116,15.8698883,136.06,136.01,0.68]
[1765207503295,16.5498883,136.06,136.01,0.68]
[1765207503496,23.89987279,136.06,136.01,8.03217796]
[1765207503691,7.8298883,136.03,135.97,8.5098883]
[1765207503897,7.8298883,136.0,135.96,0.1]
[1765207504095,15.8698883,136.0,135.96,7.45506061]
[1765207504412,0.68,135.99,135.96,7.45506061]
[1765207505125,0.68,135.99,135.96,0.1]
[1765207505422,7.8298883,135.98,135.96,0.1]
[1765207505625,40.98869722,135.97,135.88,0.68]
[1765207505962,40.98869722,135.97,135.86,8.5098883]
[1765207505963,7.8298883,135.92,135.86,8.5098883]
[1765207506296,16.308864,135.94,135.88,7.35935718]
[1765207506498,8.80994492,135.96,135.92,7.8298883]
[1765207506499,16.308864,135.96,135.92,7.8298883]
[1765207506708,31.7024656,135.99,135.93,7.8298883]
[1765207507022,7.35291958,136.01,135.94,8.5098883]
[1765207507202,8.5098883,135.99,135.95,7.35564545]
[1765207507399,23.90361257,135.99,135.94,8.0360418]
[1765207507614,0.68,135.98,135.94,7.3560418]
[1765207507925,15.8698883,135.99,135.94,8.0360418]
[1765207508224,16.5498883,135.99,135.94,26.42650818]
[1765207508427,23.2235996,135.99,135.94,8.0360418]
[1765207508724,4.50434421,135.97,135.92,0.68]
[1765207509027,0.68,135.98,135.91,4.50434421]
[1765207509208,8.04,136.01,135.96,4.50434421]
[1765207509413,4.50434421,135.99,135.94,7.35609036]
[1765207509742,12.56434421,135.98,135.94,7.35609036]
[1765207509908,13.24434421,135.98,135.94,7.35609036]
[1765207510212,21.49320821,136.0,135.95,0.68]
[1765207510615,16.308864,136.0,135.95,5.18434421]
[1765207510822,16.308864,136.0,135.96,0.68]
[1765207511019,8.06,136.01,135.96,5.18434421]
[1765207511311,8.06,136.01,135.97,11.85890771]
[1765207511514,12.56434421,136.04,135.98,5.18434421]
[1765207511729,19.91521805,136.04,135.98,5.18434421]
[1765207511932,4.50434421,136.02,135.97,7.3545635]
[1765207512129,4.50434421,136.01,135.97,7.3545635]
[1765207512330,0.68,136.01,135.97,7.3545635]
[1765207512837,4.50434421,135.99,135.93,18.39121788]
[1765207513045,5.18434421,135.99,135.93,22.89556209]
[1765207513212,5.18434421,135.99,135.94,7.35618655]
[1765207513636,0.68,135.98,135.94,7.35618655]
[1765207514037,4.50434421,135.97,135.93,7.35663814]
[1765207514244,8.06,136.0,135.94,5.18434421]
[1765207514409,20.59744662,136.0,135.94,0.68]
[1765207514614,16.09310241,136.0,135.94,5.18434421]
[1765207514815,20.59744662,136.0,135.94,5.18434421]
[1765207515450,13.24434421,136.0,135.95,7.35564545]
[1765207515946,13.24434421,136.0,135.95,8.03564545]
[1765207516123,20.59734819,136.0,135.95,8.03564545]
[1765207516324,8.06,136.0,135.96,5.18434421]
[1765207516821,8.06,136.0,135.97,0.68]
[1765207517532,5.18434421,136.03,135.98,7.35402265]
[1765207517721,4.50434421,136.02,135.98,7.35402265]
[1765207518050,4.50434421,136.03,135.98,7.35402265]
[1765207518248,5.18434421,136.03,135.98,7.35402265]
[1765207518451,4.50434421,136.01,135.98,7.35402265]
[1765207518650,5.18434421,136.02,135.98,7.35402265]
[1765207519224,4.50434421,136.01,135.98,7.35402265]
[1765207519423,12.53678771,136.01,135.97,7.35440714]
[1765207519640,4.50434421,135.99,135.94,8.72]
[1765207519849,4.50434421,135.99,135.95,7.35526577]
[1765207520044,4.50434421,135.97,135.91,13.22434421]
[1765207520232,4.50434421,135.97,135.93,7.35640345]
[1765207520440,4.50434421,135.96,135.91,27.11391708]
[1765207520641,4.50434421,135.96,135.92,7.35716751]
[1765207520842,0.68,135.95,135.92,7.35716751]
[1765207521454,28.84914645,135.95,135.91,8.03778268]
[1765207521632,4.50434421,135.94,135.91,7.35778268]
[1765207521827,4.50434421,135.92,135.87,18.39927129]
[1765207522152,5.20434421,135.91,135.88,7.35938107]
[1765207522332,0.7,135.91,135.88,7.35938107]
[1765207522738,5.20434421,135.91,135.88,7.35942983]
[1765207522937,4.50434421,135.92,135.88,19.09853445]
[1765207523135,5.20434421,135.93,135.9,7.35794519]
[1765207523350,5.20434421,135.93,135.88,18.39853445]
[1765207523351,4.50434421,135.92,135.89,7.35888614]
[1765207523852,8.05689356,135.93,135.89,7.35888614]
[1765207523853,20.81320821,135.95,135.9,0.7]
[1765207524030,4.50434421,135.93,135.88,25.75796634]
[1765207524348,4.50434421,135.9,135.87,7.35983807]
[1765207524522,4.50434421,135.88,135.85,7.36090453]
[1765207524728,4.50434421,135.88,135.84,7.46143572]
[1765207524928,8.06,135.89,135.84,0.1]
[1765207524929,4.50434421,135.85,135.84,0.1]
[1765207525128,4.50434421,135.85,135.78,0.21775118]
[1765207525129,8.80994492,135.84,135.78,0.21775118]
[1765207525353,8.80994492,135.84,135.76,0.21828968]
[1765207525354,4.50434421,135.79,135.76,0.21828968]
[1765207525856,28.87320821,135.81,135.76,8.28378965]
[1765207526054,5.20434421,135.82,135.76,26.69863938]
[1765207526267,13.26434421,135.82,135.76,26.69863938]
[1765207526466,12.56434421,135.82,135.77,0.91587609]
[1765207526631,8.06,135.83,135.77,5.4202203]
[1765207526836,12.56434421,135.85,135.79,4.50434421]
[1765207527043,12.56434421,135.85,135.78,5.20434421]
[1765207527270,16.308864,135.86,135.8,4.50434421]
[1765207527475,4.50434421,135.85,135.79,5.20434421]
[1765207527636,4.50434421,135.85,135.8,7.36377025]
[1765207527976,16.308864,135.81,135.78,7.36476718]
[1765207528136,4.50434421,135.81,135.79,7.36417064]
[1765207528346,4.50434421,135.81,135.77,0.7]
[1765207528572,4.50434421,135.82,135.77,0.7]
[1765207529071,4.50434421,135.81,135.77,8.06539276]
[1765207529374,4.50434421,135.79,135.75,7.57630154]
[1765207529547,8.80994492,135.82,135.75,7.57630154]
[1765207529548,4.50434421,135.82,135.77,4.50434421]
[1765207529737,8.06,135.83,135.76,26.48077679]
[1765207529939,4.50434421,135.82,135.77,4.50434421]
[1765207530243,12.56434421,135.83,135.78,4.50434421]
[1765207530459,12.56434421,135.83,135.78,0.7]
[1765207530667,13.26434421,135.83,135.78,0.7]
[1765207530871,5.20434421,135.82,135.76,30.985121]
[1765207531165,4.50434421,135.81,135.76,26.48077679]
[1765207531365,4.50434421,135.81,135.76,30.985121]
[1765207531548,4.50434421,135.82,135.78,7.36485491]
[1765207532364,4.50434421,135.79,135.76,7.36579689]
[1765207532535,4.50434421,135.8,135.77,7.36536803]
[1765207532736,8.06,135.83,135.77,11.86971224]
[1765207532951,4.50434421,135.82,135.77,11.86971224]
[1765207533457,5.20434421,135.82,135.77,12.56971224]
[1765207533662,4.50434421,135.82,135.78,0.7]
[1765207534549,4.50434421,135.82,135.71,8.04]
[1765207534550,4.50434421,135.79,135.71,0.21692096]
[1765207534747,0.7,135.74,135.7,0.1]
[1765207534955,4.50434421,135.72,135.7,0.1]
[1765207535137,0.7,135.74,135.7,0.1]
[1765207535341,8.76,135.73,135.7,0.1]
[1765207535558,8.76,135.73,135.64,3.19008774]
[1765207535559,5.20434421,135.72,135.66,22.93163676]
[1765207535865,5.20434421,135.72,135.64,3.89008774]
[1765207535866,8.76,135.72,135.65,7.37191301]
[1765207536171,0.7,135.71,135.65,7.37191301]
[1765207536536,8.80994492,135.73,135.66,0.7]
[1765207536747,0.7,135.72,135.68,4.50434421]
[1765207536950,0.7,135.72,135.67,4.50434421]
[1765207537167,5.20434421,135.72,135.65,25.80169553]
[1765207537370,0.7,135.72,135.64,3.19008774]
[1765207537673,4.50434421,135.65,135.64,3.19008774]
[1765207537839,8.06,135.65,135.64,3.19008774]
[1765207538680,22.07428913,135.65,135.64,3.19008774]
[1765207538844,38.38315313,135.65,135.64,3.19008774]
[1765207539165,8.80994492,135.64,135.56,7.3767736]
[1765207539370,4.50434421,135.63,135.56,4.50434421]
[1765207539577,0.7,135.63,135.58,4.50434421]
[1765207539873,8.06,135.66,135.62,4.50434421]
[1765207540065,8.06,135.66,135.58,0.7]
[1765207540263,0.7,135.66,135.58,0.7]
[1765207540448,8.06,135.65,135.64,4.50434421]
[1765207540643,8.06,135.65,135.58,0.7]
[1765207540844,8.06,135.65,135.62,4.50434421]
[1765207541044,8.06,135.66,135.62,4.50434421]
[1765207541348,0.7,135.68,135.62,0.7]
[1765207541562,8.06,135.67,135.64,4.50434421]
[1765207541758,8.06,135.67,135.57,42.12572381]
[1765207541759,0.7,135.66,135.61,4.50434421]
[1765207541966,0.7,135.66,135.6,7.37462089]
[1765207542164,0.7,135.66,135.58,0.7]
[1765207542165,0.7,135.66,135.61,7.37361803]
[1765207542366,8.06,135.68,135.64,4.50434421]
[1765207542745,8.76,135.68,135.64,4.50434421]
[1765207543443,8.76,135.68,135.6,4.50434421]
[1765207543444,0.7,135.67,135.63,4.50434421]
[1765207543672,8.06,135.68,135.64,4.50434421]
[1765207543851,8.06,135.68,135.65,4.50434421]
[1765207544174,8.06,135.68,135.63,4.50434421]
[1765207544384,0.7,135.67,135.62,4.50434421]
[1765207544671,8.06,135.68,135.66,4.50434421]
[1765207544987,8.06,135.68,135.63,7.37273346]
[1765207544988,8.06,135.69,135.64,0.7]
[1765207545282,8.80994492,135.68,135.61,4.50434421]
[1765207545470,16.308864,135.61,135.52,5.20434421]
[1765207545642,8.06,135.6,135.59,4.50434421]
[1765207545980,8.06,135.63,135.59,4.50434421]
[1765207546158,0.7,135.62,135.58,4.50434421]
[1765207546472,0.7,135.62,135.54,0.7]
[1765207546473,0.7,135.62,135.57,4.50434421]
[1765207546765,0.7,135.62,135.59,4.50434421]
[1765207547147,8.08,135.61,135.59,4.50434421]
[1765207547347,8.80994492,135.6,135.55,4.50434421]
[1765207547581,4.50434421,135.59,135.48,0.7]
[1765207547767,8.80994492,135.61,135.53,7.37836694]
[1765207547951,8.08,135.58,135.55,4.50434421]
[1765207548273,8.08,135.58,135.57,4.50434421]
[1765207548480,8.08,135.6,135.57,4.50434421]
[1765207548656,8.08,135.6,135.53,7.37836694]
[1765207548865,0.7,135.59,135.55,4.50434421]
[1765207549446,0.7,135.59,135.54,4.50434421]
[1765207549675,0.7,135.59,135.55,4.50434421]
[1765207550057,8.08,135.58,135.55,4.50434421]
[1765207550653,0.7,135.57,135.54,4.50434421]
[1765207550967,0.7,135.57,135.53,4.50434421]
[1765207551372,0.72,135.6,135.56,4.50434421]
[1765207551565,8.08,135.59,135.57,4.50434421]
[1765207552204,8.08,135.59,135.52,7.37895007]
[1765207552205,0.72,135.58,135.52,7.37895007]
[1765207552347,0.72,135.58,135.53,4.50434421]
[1765207552660,0.72,135.58,135.53,7.37826722]
[1765207552973,8.08,135.59,135.56,4.50434421]
[1765207553175,8.08,135.59,135.57,4.50434421]
[1765207553598,8.08,135.59,135.58,4.50434421]
[1765207553750,22.28074559,135.67,135.58,4.50434421]
[1765207553751,7.36973984,135.69,135.58,12.55955392]
[1765207553958,0.72,135.67,135.62,4.50434421]
[1765207554169,8.08,135.68,135.6,4.50434421]
[1765207554373,8.8,135.71,135.67,4.50434421]
[1765207554884,8.8,135.71,135.68,4.50434421]
[1765207555089,8.08,135.71,135.68,4.50434421]
[1765207556086,8.08,135.71,135.65,4.50434421]
[1765207556087,0.72,135.7,135.65,4.50434421]
[1765207556557,0.72,135.73,135.69,4.50434421]
[1765207556763,8.8,135.73,135.68,7.37021296]
[1765207556989,16.16757367,135.73,135.69,4.50434421]
[1765207557167,16.16757367,135.73,135.7,4.50434421]
[1765207557168,8.08,135.73,135.7,4.50434421]
[1765207557361,15.44800403,135.73,135.67,0.68]
[1765207557566,0.72,135.72,135.66,0.68]
[1765207557868,8.0885493,135.72,135.67,4.50434421]
[1765207558072,4.50434421,135.71,135.65,4.50434421]
[1765207558259,4.50434421,135.71,135.61,18.43435852]
[1765207558260,4.50434421,135.7,135.61,18.43435852]
[1765207558585,4.50434421,135.67,135.61,4.50434421]
[1765207558788,8.08,135.69,135.62,4.50434421]
[1765207558789,4.50434421,135.68,135.62,4.50434421]
[1765207559089,4.50434421,135.66,135.6,4.50434421]
[1765207559288,0.72,135.65,135.6,4.50434421]
[1765207559481,8.08,135.64,135.58,4.50434421]
[1765207559661,4.50434421,135.63,135.57,4.50434421]
[1765207559981,4.50434421,135.63,135.54,16.978864]
[1765207559982,11.87788793,135.62,135.56,4.50434421]
[1765207560293,4.50434421,135.61,135.55,4.50434421]
[1765207560469,0.71,135.66,135.6,4.50434421]
[1765207560668,0.71,135.65,135.57,25.8168879]
[1765207560866,7.37140343,135.66,135.61,4.50434421]
[1765207561190,25.11880892,135.69,135.58,0.67]
[1765207561191,8.07919256,135.71,135.65,4.50434421]
[1765207561482,8.79,135.71,135.67,4.50434421]
[1765207561657,8.79,135.71,135.68,4.50434421]
[1765207561856,8.08,135.71,135.68,4.50434421]
[1765207562075,8.08,135.71,135.69,4.50434421]
[1765207562277,8.08,135.71,135.67,7.37062835]
[1765207562596,8.79,135.71,135.67,4.50434421]
[1765207562773,8.08,135.71,135.69,4.50434421]
[1765207562970,8.08,135.71,135.7,4.50434421]
[1765207563289,8.07548049,135.77,135.7,4.50434421]
[1765207563489,8.07548049,135.77,135.68,30.30031463]
[1765207563490,8.08,135.76,135.71,4.50434421]
[1765207563667,8.08,135.76,135.73,4.50434421]
[1765207564273,8.08,135.76,135.75,4.50434421]
[1765207564467,8.79,135.8,135.75,4.50434421]
[1765207564671,8.08,135.8,135.78,4.50434421]
[1765207564902,13.29434421,135.8,135.73,8.03753981]
[1765207565070,20.65820584,135.8,135.75,4.50434421]
[1765207565270,4.50434421,135.84,135.78,4.50434421]
[1765207565271,0.71,135.83,135.78,4.50434421]
[1765207565495,0.71,135.83,135.76,4.50434421]
[1765207565795,4.50434421,135.81,135.76,4.50434421]
[1765207565977,4.50434421,135.8,135.75,4.50434421]
[1765207566177,8.08,135.79,135.75,4.50434421]
[1765207566797,4.50434421,135.76,135.69,7.3696018]
[1765207566980,5.21434421,135.76,135.71,4.50434421]
[1765207567298,4.50434421,135.74,135.69,4.50434421]
[1765207567496,8.79,135.75,135.71,4.50434421]
[1765207567696,8.08,135.75,135.7,4.50434421]
[1765207567897,8.08,135.75,135.72,5.17434421]
[1765207568597,8.08,135.75,135.71,4.50434421]
[1765207568901,8.08,135.75,135.69,0.67]
[1765207568902,8.79,135.75,135.7,4.50434421]
[1765207569202,16.156537,135.75,135.7,4.50434421]
[1765207569395,20.66088121,135.75,135.7,4.50434421]
[1765207569698,4.50434421,135.71,135.63,4.50434421]
[1765207569899,4.50434421,135.71,135.62,4.50434421]
[1765207569900,4.50434421,135.67,135.62,4.50434421]
[1765207570083,19.95595157,135.66,135.61,4.50434421]
[1765207570488,19.95595157,135.66,135.61,5.17434421]
[1765207570790,22.54269412,135.66,135.61,7.76108676]
[1765207571306,22.54269412,135.66,135.61,7.09108676]
[1765207571498,8.08,135.66,135.62,7.09108676]
[1765207571871,8.08,135.66,135.64,7.09108676]
[1765207572184,8.08,135.67,135.63,7.76108676]
[1765207572872,7.09108676,135.7,135.64,7.76108676]
[1765207573074,12.85426236,135.7,135.67,7.09108676]
[1765207573302,4.77426236,135.69,135.67,7.09108676]
[1765207573519,4.77426236,135.69,135.66,7.09108676]
[1765207574000,8.08,135.7,135.66,7.09108676]
[1765207574184,12.85426236,135.7,135.66,7.09108676]
[1765207574384,12.85426236,135.7,135.66,7.76108676]
[1765207574588,12.85426236,135.7,135.64,7.37232552]
[1765207574777,20.22355911,135.7,135.65,7.09108676]
[1765207574978,12.57534912,135.69,135.64,7.09108676]
[1765207575203,7.09108676,135.68,135.63,7.09108676]
[1765207575404,12.57534912,135.69,135.64,7.09108676]
[1765207575589,5.48426236,135.69,135.64,7.09108676]
[1765207575794,8.08,135.7,135.66,14.46244183]
[1765207575985,7.09108676,135.67,135.6,0.67]
[1765207576187,8.08,135.66,135.61,7.09108676]
[1765207576385,5.95573729,135.71,135.65,7.09108676]
[1765207576594,8.08,135.7,135.65,7.09108676]
[1765207576794,12.86051277,135.7,135.65,7.09108676]
[1765207577004,19.95159953,135.7,135.65,7.76108676]
[1765207577180,4.78051277,135.69,135.64,7.09108676]
[1765207577379,4.78051277,135.69,135.6,42.11970736]
[1765207577380,4.78051277,135.69,135.66,7.09108676]
[1765207577601,12.86051277,135.7,135.66,7.09108676]
[1765207577803,8.08,135.7,135.67,7.76108676]
[1765207578106,4.78418608,135.71,135.68,14.46098474]
[1765207578285,4.78418608,135.73,135.7,7.09108676]
[1765207578609,8.08,135.74,135.72,7.09108676]
[1765207579106,8.08,135.74,135.72,7.76108676]
[1765207579301,8.08,135.74,135.7,0.67]
[1765207579478,8.08,135.74,135.71,7.09108676]
[1765207579884,8.08,135.74,135.72,7.76108676]
[1765207580085,13.32014752,135.79,135.73,14.45835928]
[1765207580289,8.08,135.78,135.74,7.09108676]
[1765207580518,19.96615297,135.78,135.73,7.36727252]
[1765207580816,8.08,135.78,135.74,7.76108676]
[1765207581108,8.08,135.78,135.76,7.09108676]
[1765207581307,8.08,135.78,135.74,0.67]
[1765207581516,8.76,135.78,135.74,7.09108676]
[1765207582096,8.76,135.78,135.68,0.7]
[1765207582097,14.45807444,135.75,135.68,0.7]
[1765207582282,14.45807444,135.75,135.7,7.09108676]
[1765207582483,7.09108676,135.74,135.69,7.09108676]
[1765207582721,20.64008047,135.74,135.69,7.09108676]
[1765207582917,0.68,135.73,135.68,8.06976687]
[1765207583220,7.77108676,135.73,135.68,7.79108676]
[1765207583596,7.77108676,135.72,135.66,14.46238397]
[1765207583799,7.77108676,135.73,135.67,15.16177157]
[1765207584014,0.68,135.73,135.68,14.46131495]
[1765207584208,8.08,135.74,135.71,7.09108676]
[1765207584610,8.08,135.74,135.71,7.79108676]
[1765207585023,8.08,135.74,135.73,7.09108676]
[1765207585337,8.08,135.74,135.71,7.09108676]
[1765207585633,16.12706147,135.74,135.69,7.09108676]
[1765207585809,0.68,135.73,135.68,14.46127414]
[1765207586135,15.13881937,135.73,135.68,14.46127414]
[1765207586514,7.77108676,135.72,135.66,14.46229897]
[1765207586723,7.09108676,135.7,135.64,14.46340189]
[1765207586922,7.09108676,135.69,135.64,14.46340189]
[1765207587131,7.09108676,135.67,135.62,7.09108676]
[1765207587440,8.08,135.66,135.62,7.79108676]
[1765207587938,8.08,135.66,135.63,7.09108676]
[1765207588107,8.08,135.7,135.65,7.09108676]
[1765207588307,8.08,135.7,135.68,7.09108676]
[1765207588911,8.08,135.7,135.63,8.07281948]
[1765207588912,7.77108676,135.69,135.63,8.07281948]
[1765207589109,7.77108676,135.69,135.64,7.37240514]
[1765207589434,0.68,135.68,135.59,16.308864]
[1765207589622,0.68,135.68,135.55,14.46826947]
[1765207589623,7.09108676,135.61,135.55,14.46826947]
[1765207589824,8.08,135.61,135.55,7.09108676]
[1765207590029,8.08,135.61,135.59,7.09108676]
[1765207590241,8.08,135.61,135.59,14.46622014]
[1765207590412,8.08,135.61,135.58,7.09108676]
[1765207590606,8.08,135.61,135.57,7.79108676]
[1765207590832,15.45425737,135.61,135.56,14.46772661]
[1765207591045,7.77108676,135.6,135.54,15.16884822]
[1765207591338,7.77108676,135.6,135.54,8.07776146]
[1765207591535,15.17108676,135.61,135.56,7.09108676]
[1765207591742,8.08,135.61,135.56,7.09108676]
[1765207592038,8.08,135.61,135.56,7.79108676]
[1765207592242,15.17108676,135.61,135.56,7.79108676]
[1765207592447,8.76,135.61,135.56,15.16771176]
[1765207592645,22.54526079,135.61,135.55,7.09108676]
[1765207592831,0.68,135.6,135.56,7.09108676]
[1765207593841,0.68,135.6,135.55,7.09108676]
[1765207594063,0.68,135.6,135.55,7.79108676]
[1765207594247,7.09108676,135.6,135.55,7.09108676]
[1765207594426,8.08,135.61,135.56,7.79108676]
[1765207594621,8.0523855,135.65,135.59,7.09108676]
[1765207594828,8.08,135.64,135.6,7.09108676]
[1765207595329,15.17108676,135.64,135.58,7.09108676]
[1765207595634,7.77108676,135.63,135.58,7.09108676]
[1765207595835,0.68,135.63,135.58,7.09108676]
[1765207596029,0.68,135.62,135.57,7.79108676]
[1765207596449,8.0535913,135.62,135.57,7.79108676]
[1765207596627,15.14467806,135.62,135.56,7.09108676]
[1765207596825,15.14467806,135.62,135.56,14.46788598]
[1765207597021,15.14467806,135.62,135.56,14.4677757]
[1765207597222,0.68,135.61,135.49,0.1]
[1765207597531,23.39995076,135.52,135.49,0.1]
[1765207597733,7.09108676,135.5,135.49,0.1]
[1765207597932,8.76,135.51,135.49,0.1]
[1765207598133,8.08,135.52,135.49,0.1]
[1765207598551,7.09108676,135.55,135.49,7.89108676]
[1765207598845,8.08,135.55,135.51,7.09108676]
[1765207599053,8.08,135.55,135.49,0.8]
[1765207599054,8.08,135.55,135.49,0.1]
[1765207599257,8.08,135.55,135.5,7.79108676]
[1765207599623,8.08,135.55,135.51,7.09108676]
[1765207600168,8.08,135.55,135.52,7.09108676]
[1765207600370,8.08,135.58,135.54,7.09108676]
[1765207600574,8.08,135.58,135.55,7.09108676]
[1765207600875,36.85989101,135.65,135.57,7.09108676]
[1765207600876,7.09108676,135.65,135.57,7.09108676]
[1765207601050,15.17108676,135.65,135.59,7.09108676]
[1765207601666,7.09108676,135.63,135.57,0.7]
[1765207601866,7.09108676,135.63,135.58,7.09108676]
[1765207602046,0.68,135.64,135.57,0.7]
[1765207602361,7.77108676,135.64,135.59,14.46613431]
[1765207602570,0.68,135.64,135.59,14.46613431]
[1765207602735,7.37125125,135.67,135.63,7.09108676]
[1765207602935,8.05037426,135.68,135.6,0.7]
[1765207603263,22.54096681,135.69,135.63,7.09108676]
[1765207603468,22.54096681,135.69,135.6,7.09108676]
[1765207603469,7.09108676,135.65,135.6,7.09108676]
[1765207603634,7.09108676,135.66,135.6,7.09108676]
[1765207603837,33.87422967,135.69,135.59,25.81298545]
[1765207603838,22.54096681,135.69,135.63,7.09108676]
[1765207604072,8.08,135.69,135.64,7.09108676]
[1765207604235,14.4598938,135.71,135.65,7.79108676]
[1765207604442,15.85108676,135.72,135.66,14.46245636]
[1765207604660,7.09108676,135.71,135.66,7.3713696]
[1765207604861,7.09108676,135.7,135.64,7.09108676]
[1765207605179,7.77108676,135.71,135.66,7.09108676]
[1765207605464,15.44846691,135.72,135.67,7.09108676]
[1765207605872,23.21955367,135.72,135.67,7.09108676]
[1765207606053,22.53955367,135.72,135.67,7.09108676]
[1765207606256,7.09108676,135.7,135.65,0.7]
[1765207606455,14.46079666,135.7,135.65,7.79108676]
[1765207606658,8.0487574,135.71,135.66,7.09108676]
[1765207606973,15.17108676,135.72,135.68,7.09108676]
[1765207606974,8.08,135.72,135.68,7.09108676]
[1765207607470,14.45822839,135.74,135.68,7.79108676]
[1765207607658,23.21770139,135.75,135.69,7.09108676]
[1765207607853,23.21770139,135.75,135.7,7.09108676]
[1765207608255,16.12661463,135.75,135.7,7.79108676]
[1765207608465,23.21770139,135.75,135.7,7.79108676]
[1765207608775,16.12661463,135.75,135.7,7.79108676]
[1765207608972,8.08,135.75,135.71,7.79108676]
[1765207609270,8.04498243,135.78,135.73,7.09108676]
[1765207609468,7.36498243,135.78,135.73,7.09108676]
[1765207609676,7.36498243,135.78,135.74,7.09108676]
[1765207609971,7.36498243,135.78,135.73,0.7]
[1765207609972,7.36498243,135.78,135.73,7.79108676]
[1765207610175,7.36498243,135.78,135.74,7.09108676]
[1765207610346,8.08,135.79,135.75,14.45719104]
[1765207610546,8.08,135.79,135.75,7.09108676]
[1765207610752,23.21547891,135.79,135.74,0.7]
[1765207610958,15.44439215,135.79,135.75,7.09108676]
[1765207611157,8.08,135.79,135.75,7.09108676]
[1765207611558,7.36385938,135.8,135.75,7.09108676]
[1765207611759,7.36323361,135.81,135.75,7.36631771]
[1765207611948,15.12432037,135.81,135.75,15.16740447]
[1765207612148,7.09108676,135.8,135.71,18.42133328]
[1765207612352,7.36539736,135.77,135.73,7.09108676]
[1765207612563,8.03446568,135.79,135.74,7.09108676]
[1765207612974,15.12555244,135.79,135.73,7.36756235]
[1765207613276,7.09108676,135.76,135.71,7.09108676]
[1765207613458,7.09108676,135.77,135.71,14.45937745]
[1765207613664,15.84108676,135.78,135.73,7.09108676]
[1765207614182,8.08,135.78,135.74,7.80108676]
[1765207614551,8.08,135.78,135.72,14.45901834]
[1765207614552,23.20608433,135.78,135.72,14.45901834]
[1765207614885,7.09108676,135.76,135.71,7.80108676]
[1765207615059,22.53608433,135.78,135.72,7.09108676]
[1765207615376,15.44496181,135.78,135.73,7.09108676]
[1765207615563,22.53604857,135.78,135.73,7.09108676]
[1765207615773,23.20604857,135.78,135.73,7.80108676]
[1765207616097,7.09108676,135.77,135.71,15.16926379]
[1765207616263,7.09108676,135.75,135.7,14.46010797]
[1765207616581,14.45762129,135.75,135.7,14.46010797]
[1765207616786,15.12762129,135.75,135.7,15.17010797]
[1765207617075,7.09108676,135.74,135.7,0.71]
[1765207618076,7.09108676,135.75,135.7,15.17024866]
[1765207618282,0.5,135.74,135.66,18.42798789]
[1765207618488,7.09108676,135.71,135.66,7.37101177]
[1765207618863,7.76108676,135.71,135.65,15.17282534]
[1765207619082,7.09108676,135.71,135.66,7.37125436]
[1765207619383,8.58,135.74,135.66,7.80108676]
[1765207619590,8.58,135.74,135.73,7.09108676]